bitfinex/quotes_ETHUSD_20241022
["timestamp","ask_amount","ask_price","bid_price","bid_amount"]
[1729573037842,1.65221548,2642.2,2641.9,3.78515]
[1729573038048,1.65221548,2642.2,2641.8,0.7697]
[1729573038543,1.65221548,2642.1,2641.8,0.7697]
[1729573039209,1.65221548,2642.1,2641.8,4.55487]
[1729573039610,3.0,2642.3,2641.8,4.55487]
[1729573039611,1.65221548,2642.2,2641.8,4.55487]
[1729573039914,1.65221548,2642.2,2641.9,0.07569448]
[1729573040334,1.65221548,2642.2,2641.8,5.767888]
[1729573040552,1.65221548,2642.1,2641.9,0.07569452]
[1729573040713,1.65221548,2642.1,2641.8,5.767888]
[1729573040912,8.37643,2642.4,2641.8,5.767888]
[1729573040913,1.65221548,2642.2,2641.9,1.3343198]
[1729573041947,1.65221548,2642.2,2641.9,5.19516432]
[1729573042149,4.59191,2642.4,2641.9,5.1194698]
[1729573042354,1.65221548,2642.2,2641.9,8.9045398]
[1729573042654,1.65221548,2642.2,2641.9,5.1193898]
[1729573042856,1.65221548,2642.2,2642.0,0.58890898]
[1729573043616,1.65221548,2642.2,2642.1,0.12701159]
[1729573045055,6.78421,2642.6,2642.1,0.93061159]
[1729573045231,1.65221548,2642.4,2642.1,0.93061159]
[1729573045430,1.65221548,2642.3,2642.1,0.93061159]
[1729573045737,1.65221548,2642.3,2642.1,1.78067575]
[1729573046252,1.65221548,2642.2,2642.1,0.93061159]
[1729573047139,1.65221548,2642.3,2642.1,0.93061159]
[1729573049158,1.65221548,2642.2,2642.1,0.93061159]
[1729573049734,1.65221548,2642.3,2642.1,0.93061159]
[1729573050533,1.65221548,2642.2,2642.1,0.93061159]
[1729573050760,1.65221548,2642.3,2642.1,0.93061159]
[1729573050949,0.7625,2642.4,2642.1,0.93061159]
[1729573050950,1.65221548,2642.2,2642.1,0.12701159]
[1729573051252,1.65221548,2642.2,2641.9,4.59912]
[1729573051438,1.65221548,2642.2,2642.1,0.12693865]
[1729573051638,1.65221548,2642.2,2641.9,5.817566]
[1729573051965,1.65221548,2642.2,2642.1,0.12693865]
[1729573052418,1.65221548,2642.2,2641.9,5.817566]
[1729573052622,1.65221548,2642.2,2642.0,0.12693865]
[1729573052822,1.65221548,2642.3,2642.0,0.72138912]
[1729573053043,1.65221548,2642.3,2642.0,0.12693865]
[1729573057777,1.65221548,2642.2,2642.0,3.91192865]
[1729573057966,1.65221548,2642.2,2642.0,0.12693865]
[1729573058161,1.65221548,2642.3,2642.0,0.12693865]
[1729573058383,1.65221548,2642.3,2642.0,0.59954451]
[1729573058686,1.65221548,2642.3,2642.0,3.91194865]
[1729573059676,1.65221548,2642.3,2642.0,0.12693865]
[1729573060744,1.65221548,2642.2,2642.0,0.12693865]
[1729573061285,1.65221548,2642.3,2642.0,0.12693865]
[1729573061456,1.65221548,2642.2,2642.0,0.12693865]
[1729573062854,1.65221548,2642.3,2642.0,0.12693865]
[1729573063253,1.65221548,2642.3,2642.0,3.91186865]
[1729573063494,1.65221548,2642.3,2642.0,4.76296752]
[1729573064488,1.65221548,2642.2,2642.0,0.97803752]
[1729573064687,1.65221548,2642.3,2642.0,0.97803752]
[1729573064986,1.65221548,2642.3,2642.0,0.12693865]
[1729573066713,1.65221548,2642.2,2642.0,0.12693865]
[1729573066897,1.65221548,2642.3,2642.0,0.12693865]
[1729573077471,3.78443,2642.4,2642.0,0.12693865]
[1729573077472,1.65221548,2642.1,2642.0,0.12693865]
[1729573077767,1.65221548,2642.2,2642.0,0.12693865]
[1729573079468,1.65221548,2642.1,2642.0,0.12693865]
[1729573079670,1.65221548,2642.2,2642.0,0.12693865]
[1729573080030,1.65221548,2642.1,2642.0,0.12693865]
[1729573080934,1.65221548,2642.1,2641.7,8.3851]
[1729573081131,1.65221548,2642.1,2642.0,0.12695325]
[1729573081331,1.65221548,2642.1,2641.8,3.78529]
[1729573081573,1.65221548,2642.1,2642.0,0.12695325]
[1729573082974,1.65221548,2642.1,2641.8,3.78529]
[1729573083127,1.65221548,2642.1,2642.0,0.12695325]
[1729573083332,1.65221548,2642.1,2641.8,3.78529]
[1729573083633,1.65221548,2642.1,2642.0,0.12695325]
[1729573084258,1.65221548,2642.1,2641.8,3.78529]
[1729573084433,1.65221548,2642.1,2641.8,5.16755055]
[1729573084638,1.65221548,2642.1,2641.9,0.12695325]
[1729573085078,1.65221548,2642.2,2641.9,0.12695325]
[1729573085242,1.65221548,2642.2,2641.9,3.91208325]
[1729573089446,1.65221548,2642.2,2642.0,3.785]
[1729573089646,1.65221548,2642.2,2642.1,0.12701889]
[1729573090380,1.65221548,2642.2,2641.9,3.78513]
[1729573090675,1.65221548,2642.2,2642.1,0.12701889]
[1729573091982,1.65221548,2642.2,2641.9,3.78513]
[1729573092207,1.65221548,2642.2,2642.1,0.12701889]
[1729573092420,1.65221548,2642.2,2641.9,3.78507]
[1729573092913,1.65221548,2642.2,2642.0,0.12701889]
[1729573093376,2.47821548,2642.3,2642.0,0.12701889]
[1729573093575,1.65221548,2642.2,2642.0,0.12701889]
[1729573094020,2.47821548,2642.3,2642.0,0.12701889]
[1729573101798,1.65221548,2642.2,2642.0,0.12701889]
[1729573102224,2.47821548,2642.3,2642.0,0.12701889]
[1729573102791,1.65221548,2642.2,2642.0,0.12701889]
[1729573105838,2.47821548,2642.3,2642.0,0.12701889]
[1729573107433,1.65221548,2642.2,2642.0,0.12701889]
[1729573107902,1.65221548,2642.2,2642.0,3.91199889]
[1729573108436,1.65221548,2642.2,2642.0,0.12701889]
[1729573109932,2.47821548,2642.3,2642.0,3.91200889]
[1729573110094,1.65221548,2642.2,2642.0,3.91200889]
[1729573110434,1.65221548,2642.2,2642.0,0.12701889]
[1729573112823,1.65221548,2642.2,2642.0,3.91200889]
[1729573113202,1.65221548,2642.2,2642.0,0.12701889]
[1729573114135,2.47821548,2642.3,2642.0,0.12701889]
[1729573114724,1.65221548,2642.2,2642.0,0.12701889]
[1729573116406,2.47821548,2642.3,2642.0,0.12701889]
[1729573121942,1.65221548,2642.2,2642.0,0.12701889]
[1729573122145,2.47821548,2642.3,2642.0,0.12701889]
[1729573126451,1.65221548,2642.2,2642.0,0.12701889]
[1729573126865,0.826,2642.3,2642.0,0.12701889]
[1729573127011,2.47821548,2642.3,2642.0,0.12701889]
[1729573127547,1.65221548,2642.2,2642.0,0.12701889]
[1729573128345,2.47821548,2642.3,2642.0,0.12701889]
[1729573130149,1.65221548,2642.2,2642.0,0.12701889]
[1729573130526,0.826,2642.3,2642.0,0.12701889]
[1729573130527,2.47821548,2642.3,2642.0,0.12701889]
[1729573131960,1.65221548,2642.2,2642.0,0.12701889]
[1729573134669,2.47821548,2642.3,2642.0,0.12701889]
[1729573137343,0.826,2642.3,2642.0,0.12701889]
[1729573137548,2.47821548,2642.3,2642.0,0.12701889]
[1729573137849,0.826,2642.3,2642.0,0.12701889]
[1729573138049,2.47821548,2642.3,2642.0,0.12701889]
[1729573141687,1.65221548,2642.1,2642.0,0.12701889]
[1729573142188,1.65221548,2642.2,2641.9,3.78513]
[1729573142400,1.65221548,2642.2,2642.0,0.12267488]
[1729573144493,1.65221548,2642.1,2642.0,0.12267488]
[1729573144698,1.65221548,2642.2,2642.0,0.12267488]
[1729573145254,1.65221548,2642.1,2642.0,0.12267488]
[1729573157464,4.61059,2642.3,2642.0,0.12267488]
[1729573157673,1.65221548,2642.1,2642.0,0.12267488]
[1729573168500,1.65221548,2642.1,2641.8,3.78524]
[1729573168697,1.65221548,2642.1,2642.0,0.11857179]
[1729573169155,1.65221548,2642.1,2641.8,3.78524]
[1729573169353,1.65221548,2642.1,2642.0,0.11857179]
[1729573169568,1.65221548,2642.1,2641.8,3.78524]
[1729573169765,1.65221548,2642.1,2642.0,0.11857179]
[1729573170096,1.65221548,2642.1,2641.8,3.78524]
[1729573170599,1.65221548,2642.1,2641.9,0.11857179]
[1729573171770,1.65221548,2642.0,2641.7,3.79]
[1729573172091,1.65221548,2641.9,2641.7,3.79]
[1729573173396,1.65221548,2642.0,2641.7,3.79]
[1729573173992,1.65221548,2641.9,2641.7,3.79]
[1729573175976,1.65221548,2641.8,2641.7,3.79]
[1729573178591,1.65221548,2641.8,2641.7,3.90870252]
[1729573186041,1.65115008,2641.8,2641.7,3.90870252]
[1729573194519,1.65221548,2641.9,2641.7,3.90870252]
[1729573197123,5.43739548,2641.9,2641.7,3.90870252]
[1729573198227,1.65221548,2641.8,2641.7,3.90870252]
[1729573201573,1.65221548,2641.9,2641.7,3.90870252]
[1729573203280,1.65221548,2642.0,2641.7,4.71260252]
[1729573203477,3.0,2642.1,2641.7,4.71260252]
[1729573203781,1.65221548,2642.0,2641.7,4.71260252]
[1729573203945,5.43724548,2642.0,2641.7,4.71260252]
[1729573204454,1.65221548,2641.9,2641.7,4.71260252]
[1729573204850,5.43724548,2642.0,2641.7,4.71260252]
[1729573206392,1.65221548,2642.0,2641.7,4.71260252]
[1729573209296,1.65221548,2641.9,2641.7,4.71260252]
[1729573210079,5.43750548,2641.8,2641.7,3.90870252]
[1729573210405,10.89002096,2641.8,2641.7,0.11870252]
[1729573211057,10.90002096,2641.8,2641.7,0.11870252]
[1729573212155,11.45002096,2641.8,2641.7,0.11870252]
[1729573212355,13.05891161,2641.8,2641.7,0.11870252]
[1729573217807,8.36148,2641.2,2640.5,4.59155]
[1729573217984,1.65221548,2640.9,2640.5,4.59155]
[1729573218788,1.65221548,2640.8,2640.5,4.59155]
[1729573219002,1.65221548,2640.8,2640.5,0.8044]
[1729573219181,3.78649,2641.0,2640.6,1.216883]
[1729573219401,1.65221548,2640.7,2640.5,0.8044]
[1729573219590,1.65221548,2640.6,2640.5,0.8044]
[1729573219787,1.65221548,2640.7,2640.5,0.8044]
[1729573220006,1.65221548,2640.6,2640.5,0.8044]
[1729573220320,1.65221548,2640.6,2640.5,5.4297]
[1729573220675,1.65221548,2640.8,2640.6,3.78689]
[1729573223919,1.65221548,2640.8,2640.5,5.4297]
[1729573224628,1.65221548,2640.7,2640.5,5.4297]
[1729573226123,1.65221548,2640.7,2640.6,0.10160649]
[1729573229926,1.65221548,2640.8,2640.6,3.88861649]
[1729573230137,1.65221548,2640.8,2640.6,5.19944814]
[1729573232909,1.65221548,2640.8,2640.6,1.41243814]
[1729573233099,1.65221548,2640.8,2640.6,0.10160649]
[1729573233638,1.65221548,2640.7,2640.6,0.10160649]
[1729573234940,1.65221548,2640.8,2640.6,0.10160649]
[1729573235448,1.65221548,2640.7,2640.6,0.10160649]
[1729573238210,1.65221548,2640.8,2640.6,3.88861649]
[1729573238657,0.7708,2641.4,2640.7,2.41991548]
[1729573238813,9.15115217,2641.7,2641.5,3.78567]
[1729573239009,1.65221548,2641.6,2641.4,4.55356]
[1729573239208,1.65221548,2641.6,2641.4,4.55354]
[1729573239451,3.78523,2641.9,2641.4,0.7677]
[1729573239617,0.834113,2641.8,2641.4,0.7677]
[1729573240230,4.619433,2641.8,2641.4,0.7677]
[1729573240550,1.65221548,2641.5,2641.4,0.7677]
[1729573241051,1.65221548,2641.5,2641.4,0.86640093]
[1729573241546,1.65221548,2641.5,2641.4,0.09870093]
[1729573241924,1.65221548,2641.5,2641.2,0.7718]
[1729573241925,2.19599903,2641.5,2641.0,0.7718]
[1729573242125,1.65221548,2641.1,2641.0,0.7718]
[1729573243878,1.65221548,2641.1,2640.8,0.7718]
[1729573244083,1.65221548,2641.0,2640.8,0.7718]
[1729573244381,1.65221548,2641.1,2640.8,0.7718]
[1729573244739,1.65221548,2641.0,2640.8,0.7718]
[1729573247741,1.65221548,2641.1,2640.8,4.5585]
[1729573248345,1.65221548,2641.1,2640.9,3.78654]
[1729573250480,1.65221548,2641.1,2640.8,0.7718]
[1729573252961,1.65221548,2641.1,2640.8,4.55851]
[1729573253688,1.65221548,2641.2,2640.8,4.55851]
[1729573255069,3.78544,2641.7,2641.2,4.58895]
[1729573255385,1.65221548,2641.4,2641.2,4.58895]
[1729573255898,1.65221548,2641.4,2641.3,0.09820042]
[1729573256075,1.65221548,2641.5,2641.3,0.09820042]
[1729573256249,1.65221548,2641.5,2641.2,4.58895]
[1729573256447,1.65221548,2641.4,2641.2,4.58895]
[1729573256759,1.65221548,2641.4,2641.3,0.09820042]
[1729573257285,1.65221548,2641.4,2641.3,3.78601]
[1729573257493,1.65221548,2641.5,2641.3,3.88421042]
[1729573260559,1.65221548,2641.6,2641.3,4.25015346]
[1729573260864,1.65221548,2641.7,2641.4,3.78587]
[1729573261338,1.65221548,2641.7,2641.5,0.09820042]
[1729573262252,1.65221548,2641.6,2641.5,0.09820042]
[1729573263147,3.82983669,2642.2,2641.8,3.78529]
[1729573263355,0.8109,2642.2,2641.8,3.78529]
[1729573263555,0.8109,2642.2,2641.6,0.7774]
[1729573263556,1.65221548,2641.9,2641.6,8.34831]
[1729573263753,1.65221548,2641.9,2641.7,3.78539]
[1729573264774,1.65221548,2641.9,2641.6,5.397681]
[1729573264964,1.65221548,2641.9,2641.6,9.183181]
[1729573265168,1.65221548,2641.9,2641.6,5.397681]
[1729573265983,1.65221548,2641.8,2641.6,5.397681]
[1729573266294,1.65221548,2641.8,2641.7,0.5397681]
[1729573266865,1.65221548,2641.8,2641.6,1.612231]
[1729573267073,1.65221548,2641.8,2641.3,4.15603304]
[1729573267074,1.65221548,2641.7,2641.3,4.94513304]
[1729573267381,1.65221548,2641.6,2641.3,4.94513304]
[1729573268927,1.65221548,2641.8,2641.4,3.78584]
[1729573270138,1.65221548,2641.7,2641.4,3.78584]
[1729573271000,1.65221548,2641.8,2641.5,0.09784512]
[1729573272722,1.65221548,2641.7,2641.5,0.09784512]
[1729573273129,1.65221548,2641.7,2641.3,8.73113304]
[1729573273428,1.65221548,2641.7,2641.6,0.09784512]
[1729573273585,1.65221548,2641.7,2641.3,8.3651]
[1729573273785,1.65221548,2641.7,2641.6,0.09784512]
[1729573274017,3.78525,2641.9,2641.4,3.78578]
[1729573274218,1.65221548,2641.8,2641.4,3.78578]
[1729573274432,1.65221548,2641.7,2641.6,0.09784512]
[1729573274629,1.65221548,2641.7,2641.3,8.3651]
[1729573274802,4.54839,2641.8,2641.6,0.09784512]
[1729573275123,1.65221548,2641.7,2641.3,8.3651]
[1729573275326,1.65221548,2641.6,2641.4,0.09784512]
[1729573276724,1.65221548,2641.7,2641.4,0.09784512]
[1729573276883,1.65221548,2641.7,2641.4,3.88363512]
[1729573277088,2.41531548,2641.8,2641.4,0.09784512]
[1729573277331,2.41531548,2641.8,2641.5,3.78571]
[1729573277918,2.41531548,2641.8,2641.6,0.09784512]
[1729573279327,2.41531548,2641.8,2641.3,13.366161]
[1729573279529,2.41531548,2641.8,2641.4,5.22031122]
[1729573279702,1.65221548,2641.7,2641.4,5.22031122]
[1729573282756,1.65221548,2641.7,2641.4,1.43446122]
[1729573283252,1.65221548,2641.8,2641.4,5.22031122]
[1729573283458,1.65221548,2641.7,2641.4,5.22031122]
[1729573286662,1.65221548,2641.8,2641.4,5.22031122]
[1729573287021,1.65221548,2641.7,2641.4,5.22031122]
[1729573288236,1.65221548,2641.7,2641.4,3.88369512]
[1729573288436,1.65221548,2641.7,2641.4,0.09784512]
[1729573289776,1.65221548,2641.7,2641.4,3.88366512]
[1729573292674,1.65221548,2641.8,2641.4,3.88366512]
[1729573293484,1.65221548,2641.7,2641.4,3.88366512]
[1729573294285,1.65221548,2641.8,2641.4,3.88366512]
[1729573295094,1.65221548,2641.8,2641.4,0.09784512]
[1729573295275,0.8247,2642.2,2641.7,3.78531]
[1729573295474,1.65221548,2642.0,2641.7,3.78531]
[1729573295696,1.65221548,2642.0,2641.8,0.09801188]
[1729573295899,1.65221548,2641.9,2641.7,3.78531]
[1729573296053,1.65221548,2641.9,2641.8,0.09801188]
[1729573296249,1.65221548,2641.9,2641.7,3.78531]
[1729573296455,1.65221548,2641.9,2641.8,0.09801188]
[1729573296677,1.65221548,2641.9,2641.7,3.78531]
[1729573296878,1.65221548,2641.9,2641.8,0.09801188]
[1729573297086,1.65221548,2641.9,2641.7,3.78531]
[1729573297305,1.65221548,2641.9,2641.8,0.09801188]
[1729573297599,1.65221548,2641.9,2641.7,3.78531]
[1729573297765,1.65221548,2641.9,2641.8,0.09801188]
[1729573298098,1.65221548,2641.9,2641.7,3.78531]
[1729573298257,1.65221548,2641.8,2641.7,3.78531]
[1729573299170,1.65221548,2641.9,2641.7,3.78531]
[1729573300596,1.65221548,2641.9,2641.6,0.789]
[1729573301001,1.65221548,2641.9,2641.7,0.09801188]
[1729573302054,1.65221548,2641.9,2641.7,3.88344188]
[1729573302487,1.65221548,2641.9,2641.7,0.09801188]
[1729573302900,3.78467,2642.3,2641.7,0.94383707]
[1729573303056,1.65221548,2642.2,2641.8,0.8002]
[1729573303380,3.78467,2642.3,2641.8,0.8002]
[1729573303381,1.65221548,2642.1,2641.8,0.8002]
[1729573303701,1.65221548,2642.1,2641.9,0.09801188]
[1729573312618,3.78467,2642.3,2641.9,0.09801188]
[1729573312909,4.56228,2642.5,2641.9,0.09801188]
[1729573312910,1.65221548,2642.2,2642.0,3.78499]
[1729573313110,1.65221548,2642.2,2642.1,0.0976203]
[1729573313312,0.7779,2642.5,2642.1,0.0976203]
[1729573313617,1.65221548,2642.3,2642.1,4.55096]
[1729573313974,1.65221548,2642.3,2642.2,0.0976203]
[1729573315373,1.65221548,2642.4,2642.2,0.0976203]
[1729573315580,3.80303669,2642.7,2642.5,3.78418]
[1729573315581,0.01893669,2642.7,2642.5,3.78418]
[1729573315779,1.65221548,2642.6,2642.3,4.5699]
[1729573316020,1.65221548,2642.7,2642.6,0.09735928]
[1729573316220,1.65221548,2642.7,2642.4,3.78433]
[1729573316517,0.8022,2642.8,2642.5,0.835423]
[1729573316720,1.65221548,2642.6,2642.5,0.835423]
[1729573317425,1.65221548,2642.6,2642.3,4.5699]
[1729573317574,1.65221548,2642.5,2642.3,4.5699]
[1729573318455,1.65221548,2642.6,2642.2,3.79]
[1729573319647,1.65221548,2642.3,2642.2,3.79]
[1729573319954,2.47721548,2642.4,2642.2,3.79]
[1729573321252,1.65221548,2642.3,2642.2,3.79]
[1729573321924,2.47721548,2642.4,2642.2,3.79]
[1729573322649,6.26166548,2642.4,2642.2,3.79]
[1729573323008,5.43679548,2642.3,2642.2,3.79]
[1729573323311,6.23369548,2642.3,2642.2,3.79]
[1729573324263,0.7969,2642.2,2641.5,4.57944]
[1729573324555,1.65221548,2642.0,2641.5,8.36509]
[1729573324955,1.65221548,2641.9,2641.5,4.57944]
[1729573325177,1.65221548,2641.6,2641.4,5.01486651]
[1729573325327,1.65221548,2641.7,2641.4,5.01486651]
[1729573326668,1.65221548,2641.6,2641.4,5.01486651]
[1729573326817,1.65221548,2641.7,2641.4,5.01486651]
[1729573328051,1.65221548,2641.6,2641.4,5.01486651]
[1729573328212,1.65221548,2641.7,2641.4,5.01486651]
[1729573329657,1.65221548,2641.5,2641.4,3.79]
[1729573329814,2.45271548,2641.5,2641.4,3.79]
[1729573330822,6.23843548,2641.5,2641.4,3.79]
[1729573331027,6.23843548,2641.5,2641.4,3.88764204]
[1729573331612,7.40606758,2641.5,2641.4,0.09764204]
[1729573332049,3.78597,2641.4,2640.8,6.20376548]
[1729573332256,5.43824548,2641.3,2640.8,6.20376548]
[1729573332435,1.65221548,2641.2,2640.8,4.55155]
[1729573332637,5.43824548,2641.3,2640.8,6.20376548]
[1729573332879,1.65221548,2641.2,2640.8,5.92962555]
[1729573333389,5.43824548,2641.3,2640.8,7.58184103]
[1729573333576,1.65221548,2641.2,2640.8,5.92962555]
[1729573333762,5.43824548,2641.3,2640.8,7.58184103]
[1729573334166,1.65221548,2641.4,2640.9,4.5446841]
[1729573334360,8.34726,2641.7,2641.2,1.65221548]
[1729573334562,6.21393548,2641.7,2641.2,1.65221548]
[1729573334766,1.65221548,2641.6,2641.1,6.20695548]
[1729573334954,1.65221548,2641.6,2641.1,7.32144243]
[1729573336391,5.43787548,2641.6,2641.1,3.53520243]
[1729573336696,5.43795548,2641.5,2641.1,0.7685]
[1729573337392,1.65221548,2641.4,2641.1,0.7685]
[1729573337599,5.43795548,2641.5,2641.1,0.7685]
[1729573338793,2.47731548,2641.3,2640.9,0.7747]
[1729573339507,0.8251,2641.3,2640.9,0.7747]
[1729573339662,2.47731548,2641.3,2640.9,0.7747]
[1729573339998,2.47731548,2641.3,2640.6,7.57696]
[1729573339999,5.43859548,2641.1,2640.7,0.7747]
[1729573340206,3.78646,2641.0,2640.6,3.79]
[1729573340356,5.43859548,2641.1,2640.6,3.79]
[1729573340694,5.43868548,2641.0,2640.6,3.79]
[1729573341189,5.43859548,2641.1,2640.6,3.79]
[1729573341390,5.43859548,2641.1,2640.6,11.80177455]
[1729573341593,5.43859548,2641.1,2640.6,10.14955907]
[1729573342306,9.22499548,2641.1,2640.6,6.36258907]
[1729573342461,5.43859548,2641.1,2640.6,6.75571909]
[1729573342900,5.43859548,2641.1,2640.6,10.54269909]
[1729573343112,5.43859548,2641.1,2640.6,12.19491457]
[1729573343983,5.43859548,2641.1,2640.6,8.40793457]
[1729573344183,5.43859548,2641.1,2640.6,6.75571909]
[1729573344809,5.43859548,2641.1,2640.6,8.40793457]
[1729573344978,1.65221548,2641.0,2640.6,6.75571909]
[1729573345163,1.65221548,2641.0,2640.6,3.79]
[1729573346266,1.65221548,2641.0,2640.7,0.09800461]
[1729573346463,5.43866548,2641.0,2640.7,0.09800461]
[1729573346912,6.19956548,2641.0,2640.7,0.09800461]
[1729573350015,10.85206096,2640.8,2640.7,0.09800461]
[1729573350513,3.78756,2640.3,2639.9,0.7929]
[1729573350669,1.65221548,2640.0,2639.7,0.7929]
[1729573350870,1.65221548,2639.8,2639.6,3.79]
[1729573351102,5.44051548,2639.7,2639.6,3.79]
[1729573352169,1.65221548,2639.7,2639.6,3.79]
[1729573352366,3.78816,2639.9,2639.6,3.79]
[1729573352607,3.0,2640.0,2639.7,0.7775]
[1729573355166,6.78802,2640.0,2639.7,0.7775]
[1729573356438,6.78787,2640.0,2639.7,0.7775]
[1729573361242,6.78787,2640.0,2639.8,0.09536158]
[1729573361747,6.78787,2640.0,2639.9,0.09536158]
[1729573361953,6.78787,2640.0,2639.7,0.7775]
[1729573362248,3.0,2640.0,2639.8,0.09536158]
[1729573362410,3.78796,2640.0,2639.8,0.09536158]
[1729573362748,3.78796,2640.0,2639.7,0.7775]
[1729573362908,0.793,2640.3,2639.7,1.613109]
[1729573363117,3.78717,2640.5,2640.1,0.7839]
[1729573363421,3.78717,2640.5,2640.2,0.09686379]
[1729573364313,3.78732,2640.4,2640.2,0.09686379]
[1729573364948,3.78717,2640.5,2640.2,0.09686379]
[1729573365457,3.78691,2640.7,2640.2,0.09686379]
[1729573365458,3.0,2640.7,2640.3,0.8023]
[1729573365952,3.0,2640.7,2640.4,0.09669683]
[1729573366253,3.78689,2640.7,2640.4,0.09669683]
[1729573366763,3.78662,2640.9,2640.4,0.09669683]
[1729573366764,3.78672,2640.9,2640.4,0.09669683]
[1729573367058,3.78672,2640.9,2640.4,0.61203265]
[1729573367257,4.56071669,2641.1,2640.5,3.78716]
[1729573367559,3.78648,2641.0,2640.5,0.8059]
[1729573367717,3.78648,2641.0,2640.6,0.09669683]
[1729573367916,3.78639,2641.1,2640.6,0.09669683]
[1729573368116,3.78639,2641.1,2640.6,0.6172111]
[1729573368548,7.57279,2641.1,2640.6,0.6172111]
[1729573368733,3.78647,2641.0,2640.6,0.6172111]
[1729573369660,3.78639,2641.1,2640.6,0.6172111]
[1729573369865,3.78646,2641.0,2640.6,0.6172111]
[1729573371816,3.78676,2640.8,2640.6,0.09669683]
[1729573373119,7.48516625,2640.8,2640.6,0.09669683]
[1729573373316,3.78687,2640.7,2640.6,0.09669683]
[1729573373619,3.78687,2640.7,2640.2,0.7716]
[1729573373856,3.78687,2640.7,2640.6,0.09583317]
[1729573374038,3.78702,2640.6,2640.2,0.7716]
[1729573376044,3.78702,2640.6,2640.3,0.09589848]
[1729573376370,3.78702,2640.6,2640.2,0.7716]
[1729573376527,7.57359,2640.8,2640.3,0.09589848]
[1729573376723,3.78688,2640.7,2640.2,4.55918]
[1729573377143,3.78688,2640.7,2640.3,0.09589848]
[1729573377348,3.78688,2640.7,2640.2,4.55918]
[1729573377625,3.78688,2640.7,2640.3,0.09589848]
[1729573378074,3.78688,2640.7,2640.2,4.55918]
[1729573378547,4.98943963,2640.8,2640.3,0.09589848]
[1729573378871,4.98943963,2640.8,2640.2,4.55918]
[1729573379074,4.98943963,2640.8,2640.4,0.09589848]
[1729573379279,8.77630963,2640.8,2640.2,4.55918]
[1729573379794,3.78676,2640.8,2640.3,0.09589848]
[1729573380076,7.57308,2641.0,2640.5,0.7999]
[1729573380250,7.57302,2641.0,2640.5,0.7999]
[1729573380445,3.7866,2640.9,2640.5,0.7999]
[1729573380775,3.7866,2640.9,2640.6,0.09589848]
[1729573380965,3.78641,2641.1,2640.6,0.09589848]
[1729573381167,3.0,2641.1,2640.7,3.78686]
[1729573381384,3.0,2641.1,2640.8,0.7638]
[1729573381705,3.0,2641.1,2640.9,0.09589848]
[1729573382580,6.78631,2641.1,2640.9,0.09589848]
[1729573382946,3.0,2641.1,2640.9,0.09589848]
[1729573383152,3.78644,2641.0,2640.9,0.09589848]
[1729573383450,3.78644,2641.0,2640.6,0.8101]
[1729573383652,3.78644,2641.0,2640.9,0.09589848]
[1729573383893,3.78644,2641.0,2640.6,0.8101]
[1729573384066,3.78644,2641.0,2640.9,0.09594924]
[1729573384253,3.78644,2641.0,2640.6,0.8101]
[1729573384453,4.94855446,2641.0,2640.9,0.09594924]
[1729573384656,9.54853446,2641.0,2640.6,0.8101]
[1729573384984,1.97551446,2641.0,2640.6,0.8101]
[1729573385196,7.57325,2640.9,2640.7,0.09594924]
[1729573386352,3.78659,2640.9,2640.7,0.09594924]
[1729573388189,6.78639,2641.1,2640.7,0.09594924]
[1729573388549,10.57283,2641.1,2640.7,0.09594924]
[1729573388748,6.78639,2641.1,2640.7,0.09594924]
[1729573388994,3.78647,2641.0,2640.7,0.09594924]
[1729573389653,3.0,2641.2,2640.7,0.09594924]
[1729573389967,6.78628,2641.2,2640.7,0.09594924]
[1729573390170,3.0,2641.2,2640.7,0.09594924]
[1729573390479,3.78652,2641.0,2640.7,0.09594924]
[1729573390997,3.78632,2641.1,2640.7,0.09594924]
[1729573391694,7.57273,2641.1,2640.7,0.09594924]
[1729573392500,3.78647,2641.0,2640.7,0.09594924]
[1729573393231,3.78659,2640.9,2640.7,0.09594924]
[1729573394004,7.5727,2641.1,2640.7,0.09594924]
[1729573394479,3.78632,2641.1,2640.7,0.09594924]
[1729573394826,3.78645,2641.0,2640.7,0.09594924]
[1729573395179,3.78659,2640.9,2640.7,0.09594924]
[1729573395622,4.465082,2641.0,2640.7,0.09594924]
[1729573395918,3.78645,2641.0,2640.7,0.09594924]
[1729573396332,5.44018001,2641.0,2640.7,0.09594924]
[1729573397428,3.78661,2640.9,2640.7,0.09594924]
[1729573399904,5.44046001,2640.8,2640.7,0.09594924]
[1729573402042,1.65373001,2640.8,2640.7,0.09594924]
[1729573402614,9.22704001,2640.9,2640.7,0.09594924]
[1729573402848,3.78673,2640.8,2640.7,0.09594924]
[1729573403813,3.78661,2640.9,2640.7,0.09594924]
[1729573404333,5.44034001,2640.9,2640.7,0.09594924]
[1729573405006,5.44046001,2640.8,2640.7,0.09594924]
[1729573405346,1.65373001,2640.8,2640.7,0.09594924]
[1729573405501,5.44034001,2640.9,2640.7,0.09594924]
[1729573407054,1.65373001,2640.8,2640.7,0.09594924]
[1729573407251,6.06091401,2640.8,2640.4,4.6115]
[1729573407546,1.65373001,2640.6,2640.4,4.6115]
[1729573407743,1.65373001,2640.7,2640.4,4.6115]
[1729573407952,0.7642,2640.9,2640.4,3.79]
[1729573407953,5.44083001,2640.6,2640.4,3.79]
[1729573409919,3.7871,2640.6,2640.4,3.79]
[1729573411108,1.65373001,2640.7,2640.4,3.79]
[1729573411352,5.44068001,2640.7,2640.4,3.79]
[1729573412742,9.22742001,2640.8,2640.4,3.79]
[1729573413157,5.44065001,2640.7,2640.4,3.79]
[1729573415252,1.65373001,2640.7,2640.4,3.79]
[1729573415629,5.44061001,2640.7,2640.4,3.79]
[1729573415830,1.65373001,2640.7,2640.4,3.79]
[1729573417548,1.65373001,2640.6,2640.4,3.79]
[1729573419257,5.44069001,2640.7,2640.4,3.79]
[1729573420227,1.65373001,2640.6,2640.4,3.79]
[1729573420863,1.65373001,2640.6,2640.5,0.09612344]
[1729573421062,5.44069001,2640.7,2640.5,0.09612344]
[1729573421362,1.65373001,2640.6,2640.5,0.09612344]
[1729573421518,5.44069001,2640.7,2640.5,0.09612344]
[1729573422163,1.65373001,2640.7,2640.5,0.09612344]
[1729573422867,5.44056001,2640.8,2640.5,0.09612344]
[1729573423090,1.65373001,2640.7,2640.5,0.09612344]
[1729573425304,3.78682,2640.8,2640.5,0.09612344]
[1729573425305,5.44055001,2640.8,2640.5,0.09612344]
[1729573425452,3.78682,2640.8,2640.5,0.09612344]
[1729573425652,5.44055001,2640.8,2640.5,0.09612344]